bitfinex/quotes_ETHUSD_20251127
["timestamp","ask_amount","ask_price","bid_price","bid_amount"]
[1764258675244,1.06957144,3014.6,3014.5,0.9745]
[1764258675245,1.28057144,3014.6,3014.5,0.9745]
[1764258675651,0.31155916,3014.6,3014.5,0.9745]
[1764258675851,0.31155916,3014.6,3014.5,4.29179971]
[1764258676173,0.31155916,3014.6,3014.5,5.05272853]
[1764258676674,0.31155916,3014.6,3014.5,1.73542882]
[1764258678488,0.31155916,3014.6,3014.5,5.05272853]
[1764258678772,0.31155916,3014.6,3014.5,1.73542882]
[1764258678970,0.31155916,3014.6,3014.5,0.001]
[1764258679274,0.31155916,3014.6,3014.5,0.9745]
[1764258683293,0.002,3014.6,3014.5,4.29179971]
[1764258683593,0.002,3014.6,3014.5,5.47770889]
[1764258683879,0.002,3014.6,3014.5,6.54405093]
[1764258685481,0.002,3014.6,3014.5,5.35919113]
[1764258686397,0.002,3014.6,3014.5,6.08478524]
[1764258686558,0.002,3014.6,3014.5,7.36964504]
[1764258687370,0.002,3014.6,3014.5,6.18478524]
[1764258687580,0.002,3014.6,3014.5,6.21795823]
[1764258688698,0.002,3015.3,3014.9,0.4922]
[1764258688871,0.002,3015.3,3015.2,0.4922]
[1764258689392,0.002,3015.3,3015.2,4.29002958]
[1764258689569,0.002,3015.3,3015.2,5.07179581]
[1764258689768,0.0012,3015.3,3015.2,5.07179581]
[1764258692067,0.0012,3015.3,3015.2,1.96626623]
[1764258692268,0.0012,3015.3,3015.2,4.29002958]
[1764258693001,0.0012,3015.3,3015.2,0.4922]
[1764258693296,0.0012,3015.3,3015.2,3.80872958]
[1764258693494,0.0646,3015.3,3015.0,3.31674958]
[1764258693703,0.0646,3015.3,3015.1,0.03316639]
[1764258693881,0.0012,3015.3,3015.1,0.03316639]
[1764258694081,0.0012,3015.3,3015.2,0.4922]
[1764258694295,0.0012,3015.3,3015.0,3.79804958]
[1764258694495,0.0012,3015.3,3015.1,0.03316639]
[1764258694972,0.0012,3015.3,3015.0,3.31674958]
[1764258695796,0.0012,3015.3,3015.0,3.79804958]
[1764258695998,0.0012,3015.3,3015.0,0.4813]
[1764258696206,0.0012,3015.3,3014.9,3.52784036]
[1764258696374,0.0012,3015.3,3014.9,6.84469995]
[1764258696697,0.498,3015.3,3014.9,0.211]
[1764258696873,0.498,3015.3,3014.7,3.79834593]
[1764258697076,0.405504,3015.2,3014.6,3.35033137]
[1764258697274,0.405504,3015.2,3014.6,7.14882104]
[1764258697495,0.406704,3015.3,3014.6,7.11564915]
[1764258697801,0.406704,3015.3,3014.7,0.03317079]
[1764258698598,0.0012,3015.3,3015.2,0.4922]
[1764258699301,0.0646,3015.3,3014.8,7.11523922]
[1764258699504,0.0646,3015.3,3014.8,8.41377161]
[1764258699684,0.0646,3015.3,3014.9,0.03316859]
[1764258700405,0.0012,3015.3,3015.2,0.4918]
[1764258700604,0.0012,3015.3,3015.2,3.5593771]
[1764258700791,0.0012,3015.3,3015.2,5.33241386]
[1764258700971,0.0012,3015.3,3015.2,6.96468561]
[1764258702376,0.03277098,3016.1,3015.3,30.72559411]
[1764258702593,0.003,3016.4,3016.3,0.72559411]
[1764258702795,0.003,3016.4,3016.3,1.61569411]
[1764258702993,0.003,3016.4,3016.3,2.10829411]
[1764258703191,0.003,3016.4,3016.3,2.31912352]
[1764258704279,0.003,3016.4,3016.0,0.3993]
[1764258704475,0.003,3016.4,3015.7,3.31597689]
[1764258704476,0.2619,3016.1,3015.7,3.31597689]
[1764258704681,0.003,3016.4,3015.7,6.63195659]
[1764258704903,0.003,3016.4,3016.0,0.4918]
[1764258705201,0.003,3016.4,3016.3,0.6791]
[1764258705406,0.003,3016.4,3015.9,0.212]
[1764258705703,0.003,3016.4,3015.9,1.45698566]
[1764258706698,0.2619,3016.0,3015.9,3.52771619]
[1764258706894,0.2619,3016.0,3015.8,3.31582617]
[1764258707096,0.2619,3016.0,3015.3,5.71296237]
[1764258707097,0.648,3015.9,3015.2,2.35786586]
[1764258707304,0.648,3015.9,3015.3,0.24516419]
[1764258707495,0.4678,3015.8,3015.3,0.24516419]
[1764258707896,0.2619,3015.4,3015.3,0.212]
[1764258708107,0.2619,3015.4,3015.1,3.31663318]
[1764258708280,0.2619,3015.4,3015.2,0.03316529]
[1764258708714,0.0047,3015.3,3015.2,3.34969487]
[1764258708917,0.50021817,3015.8,3015.2,3.34969487]
[1764258709244,0.30913364,3015.7,3015.2,3.84149487]
[1764258709383,0.2619,3015.3,3014.6,3.31814549]
[1764258709581,0.30922441,3015.2,3014.7,0.03317079]
[1764258709812,0.2619,3015.3,3014.6,3.76789964]
[1764258709813,0.7276,3015.3,3014.6,3.76789964]
[1764258709982,0.405504,3015.6,3014.7,1.2513649]
[1764258710309,0.30926465,3015.5,3014.7,1.4633649]
[1764258710506,0.405504,3015.6,3014.8,0.85484542]
[1764258710708,0.3093267,3015.5,3014.9,6.66688777]
[1764258710911,0.4678,3015.7,3014.9,6.63371918]
[1764258711111,0.30932675,3015.6,3014.9,6.63371918]
[1764258711417,0.30932675,3015.5,3014.9,6.63371918]
[1764258711615,0.4678,3015.7,3015.0,0.79811646]
[1764258711794,0.30941365,3015.6,3015.0,0.79811646]
[1764258711995,0.30941365,3015.5,3015.0,0.79811646]
[1764258712193,0.4678,3015.7,3015.1,0.03316639]
[1764258712401,0.30950803,3015.6,3015.1,0.03316639]
[1764258712606,0.30950803,3015.5,3015.1,0.03316639]
[1764258712791,0.4678,3015.7,3015.2,3.31652958]
[1764258713026,0.30950349,3015.6,3015.2,3.31652958]
[1764258713320,0.21471817,3015.9,3015.2,3.34969487]
[1764258713321,0.30950349,3015.5,3015.2,3.34969487]
[1764258713523,0.405504,3015.8,3015.2,0.03316529]
[1764258713716,0.30958974,3015.7,3015.2,0.03316529]
[1764258713920,0.30958974,3015.6,3015.2,0.03316529]
[1764258714100,0.30958974,3015.5,3015.2,0.03316529]
[1764258714302,0.4678,3015.6,3014.9,3.31684967]
[1764258714501,0.30961184,3015.5,3015.0,0.03316749]
[1764258714701,0.4678,3015.6,3015.0,0.36816921]
[1764258714920,0.30960875,3015.5,3015.1,3.31663958]
[1764258715116,0.4678,3015.6,3015.2,0.03316529]
[1764258715428,0.30962749,3015.5,3015.2,0.52576529]
[1764258715630,0.405504,3015.8,3015.2,0.52576529]
[1764258715830,0.3096275,3015.7,3015.2,0.52576529]
[1764258716032,0.3096275,3015.6,3015.2,1.29389991]
[1764258716202,0.3096275,3015.5,3015.2,1.29389991]
[1764258716404,3.31588267,3015.8,3015.1,3.31663958]
[1764258716621,0.30965101,3015.7,3015.1,3.31663958]
[1764258716821,0.30965101,3015.6,3015.1,3.31663958]
[1764258717129,0.30965101,3015.5,3015.1,3.31663958]
[1764258717319,3.78372236,3015.8,3015.1,6.63327916]
[1764258717514,0.30966291,3015.7,3015.2,0.03316529]
[1764258717720,0.30966291,3015.6,3015.2,0.52576529]
[1764258717927,0.30966291,3015.5,3015.2,0.52576529]
[1764258718117,3.78369404,3015.8,3015.1,4.27472767]
[1764258718299,0.0026,3015.2,3015.1,0.212]
[1764258718726,0.77747484,3015.5,3015.1,0.212]
[1764258718919,0.03241817,3015.7,3015.2,3.34960802]
[1764258719122,0.30967684,3015.6,3015.2,3.34960802]
[1764258719432,0.03241817,3015.7,3015.1,0.212]
[1764258719433,0.2619,3015.3,3015.1,0.212]
[1764258719627,0.0026,3015.2,3015.1,0.24516639]
[1764258719932,0.405504,3015.1,3014.6,0.001]
[1764258720126,0.30969032,3015.0,3014.6,0.001]
[1764258720331,0.6506,3014.7,3014.6,0.001]
[1764258720506,0.96029032,3014.7,3014.6,0.001]
[1764258720707,1.22169032,3014.7,3014.6,0.001]
[1764258722031,0.96029032,3014.7,3014.6,0.001]
[1764258722328,4.53876996,3014.7,3014.6,0.001]
[1764258722559,4.96649596,3014.7,3014.6,0.001]
[1764258722703,5.37199996,3014.7,3014.6,0.001]
[1764258722899,5.58399996,3014.7,3014.6,0.001]
[1764258723517,2.26692032,3014.7,3014.6,0.001]
[1764258723727,1.83919432,3014.7,3014.6,0.001]
[1764258724305,4.89487396,3014.7,3014.6,0.001]
[1764258724705,0.30969032,3014.7,3014.6,0.4928]
[1764258725630,0.93759411,3014.9,3014.6,0.001]
[1764258725631,0.30969032,3014.8,3014.6,0.001]
[1764258725831,0.30969032,3014.7,3014.6,0.001]
[1764258726032,0.30969032,3014.8,3014.6,0.001]
[1764258726225,0.30969032,3014.7,3014.6,0.001]
[1764258726425,0.2619,3014.7,3014.6,0.001]
[1764258726734,0.57097436,3014.7,3014.6,0.001]
[1764258727407,0.2619,3014.7,3014.6,0.001]
[1764258727731,0.30901858,3014.8,3014.6,0.4928]
[1764258727937,0.03241817,3015.0,3014.6,0.9854]
[1764258728231,0.30900092,3015.0,3014.7,0.52497079]
[1764258728433,0.03241817,3015.0,3014.7,0.4918]
[1764258728636,0.34139145,3015.1,3014.9,0.4918]
[1764258728836,0.72559411,3015.5,3015.1,0.4918]
[1764258729039,0.30895008,3015.4,3015.1,0.4918]
[1764258729333,0.30895008,3015.3,3015.1,0.4918]
[1764258729537,0.03241817,3015.6,3015.1,4.48832391]
[1764258729841,0.30891768,3015.6,3015.1,7.76199588]
[1764258730012,0.1815,3015.9,3015.5,0.4918]
[1764258730208,0.52279099,3015.9,3015.5,0.4918]
[1764258730425,3.83855432,3015.9,3015.5,0.4918]
[1764258730720,0.30887282,3015.8,3015.5,0.4918]
[1764258730925,0.03241817,3015.9,3015.8,0.4844]
[1764258731111,3.65706018,3015.9,3015.2,0.6711]
[1764258731311,0.30886969,3015.8,3015.2,1.46514959]
[1764258731534,0.03241817,3015.9,3015.3,3.31641959]
[1764258731840,0.34133529,3015.9,3015.3,7.09193918]
[1764258732012,0.30891712,3015.8,3015.3,7.09193918]
[1764258732213,0.03241817,3016.0,3015.3,6.63283918]
[1764258732538,0.30893447,3015.9,3015.4,1.22298888]
[1764258732836,3.31759421,3016.1,3015.4,1.22298888]
[1764258732837,0.002,3016.1,3015.4,1.22298888]
[1764258733035,0.31095383,3016.1,3015.5,0.4591]
[1764258733211,0.30895383,3016.0,3015.5,0.4591]
[1764258733411,0.30895383,3016.0,3015.5,3.77520976]
[1764258733611,0.30895383,3016.0,3015.6,0.78553937]
[1764258734134,0.30895383,3016.0,3015.9,0.4844]
[1764258734335,0.002,3016.1,3015.9,0.4844]
[1764258734536,0.002,3016.1,3016.0,0.9435]
[1764258734742,0.002,3016.1,3015.7,0.4591]
[1764258735039,0.002,3016.1,3016.0,0.4844]
[1764258735535,0.002,3016.1,3015.7,0.4591]
[1764258735840,0.002,3016.1,3016.0,0.4844]
[1764258737234,0.0012,3016.1,3016.0,0.4844]
[1764258737948,0.0012,3016.1,3016.0,0.38001053]
[1764258738244,0.2261,3016.1,3015.8,3.31586495]
[1764258738622,0.2261,3016.1,3015.7,3.3159356]
[1764258738820,0.0049,3015.8,3015.6,3.52805236]
[1764258739022,0.0049,3015.8,3015.6,0.212]
[1764258739420,0.2365,3015.7,3015.1,0.63613239]
[1764258739641,0.2342,3015.2,3014.7,0.1812]
[1764258739853,0.03241817,3015.6,3014.7,0.1812]
[1764258739854,0.30937947,3015.5,3014.8,0.03316969]
[1764258740024,0.03241817,3015.7,3015.1,0.4844]
[1764258740224,0.30938882,3015.6,3015.2,0.03316529]
[1764258740430,0.405504,3015.7,3015.2,0.49226529]
[1764258740743,0.309378,3015.6,3015.2,0.49226529]
[1764258741727,0.309378,3015.6,3015.3,3.31641959]
[1764258742038,0.309378,3015.6,3015.4,0.03316309]
[1764258742253,0.1736,3015.9,3015.4,0.03316309]
[1764258742451,0.2414,3015.5,3015.3,3.31641959]
[1764258742630,0.30935077,3015.7,3015.4,0.51756309]
[1764258742945,0.03241817,3015.8,3015.4,0.51756309]
[1764258743150,0.30935225,3015.7,3015.4,0.4844]
[1764258743359,0.1736,3015.9,3015.5,0.03316199]
[1764258743523,0.2414,3015.5,3015.3,3.31641959]
[1764258743714,0.30934451,3015.7,3015.3,3.31641959]
[1764258744038,0.1736,3015.9,3015.4,0.03316309]
[1764258744214,0.30935652,3015.8,3015.4,0.03316309]
[1764258744414,0.30935652,3015.7,3015.4,0.49226309]
[1764258744627,0.67,3015.9,3015.1,7.09237916]
[1764258744843,0.30935399,3015.8,3015.2,0.76360321]
[1764258745045,0.30935399,3015.7,3015.2,0.73043792]
[1764258745222,0.4964,3015.8,3015.2,0.73043792]
[1764258745420,0.30935033,3015.7,3015.2,0.73043792]
[1764258745640,0.03241817,3016.0,3015.3,0.4591]
[1764258745842,0.30934968,3015.9,3015.6,0.4844]
[1764258746043,0.30934968,3015.8,3015.6,0.4844]
[1764258746320,0.30934968,3015.7,3015.6,0.4844]
[1764258746523,0.53424968,3015.7,3015.3,3.31638678]
[1764258746781,0.405504,3015.8,3015.3,3.34955097]
[1764258746918,0.30934874,3015.7,3015.3,3.31638678]
[1764258747124,0.30934874,3015.7,3015.3,3.34955097]
[1764258747449,0.80574874,3015.7,3015.3,3.69725188]
[1764258747661,0.2414,3015.4,3015.3,3.31638678]
[1764258748163,0.03241817,3015.8,3015.1,6.63327916]
[1764258748337,0.30931471,3015.7,3015.1,6.63327916]
[1764258748520,0.30931471,3015.7,3015.1,3.31663958]
[1764258749031,0.30931471,3015.7,3015.1,6.63327916]
[1764258749237,0.30931471,3015.7,3015.1,7.36371708]
[1764258749418,0.80571471,3015.7,3015.1,4.0470775]
[1764258749622,0.2414,3015.2,3015.0,0.212]
[1764258749821,0.30934306,3015.5,3015.0,0.212]
[1764258750022,0.30934306,3015.4,3014.8,3.31687497]
[1764258750223,3.81261747,3015.5,3015.0,3.31674958]
[1764258750457,0.69067229,3015.4,3015.0,3.30732958]
[1764258750663,0.38126175,3015.4,3015.0,3.30732958]
[1764258750964,0.87766175,3015.4,3015.0,3.30732958]
[1764258751128,0.87766175,3015.4,3014.9,3.56199398]
[1764258751462,0.87766175,3015.4,3014.9,3.52882539]
[1764258751660,0.4685,3015.0,3014.7,3.56219399]
[1764258752375,0.4685,3015.0,3014.7,6.87927363]
[1764258752542,0.68838792,3015.3,3014.7,6.84610284]
[1764258752744,0.30955544,3015.2,3014.7,6.84610284]
[1764258752944,0.30955544,3015.1,3014.8,0.4591]
[1764258753155,0.03241817,3015.5,3014.7,3.5290232]
[1764258753156,3.72181361,3015.4,3014.7,3.5290232]
[1764258753461,0.80595569,3015.3,3014.7,3.52907844]
[1764258753666,0.30955569,3015.2,3014.7,3.52907844]
[1764258753868,0.2414,3014.8,3014.6,0.001]
[1764258754166,0.4964,3015.2,3014.6,0.001]
[1764258754167,0.31208584,3014.7,3014.6,0.001]
[1764258754345,4.03466948,3014.7,3014.6,0.001]
[1764258754535,0.30968584,3014.7,3014.6,0.4854]
[1764258754865,0.20601817,3015.9,3014.6,1.0445]
[1764258755067,0.405504,3015.4,3014.6,0.9445]
[1764258755243,0.30967192,3015.3,3014.7,0.24517079]
[1764258755449,0.30967192,3015.2,3014.7,0.24517079]
[1764258755659,0.2414,3014.8,3014.7,0.24517079]
[1764258755857,0.93432217,3015.4,3014.6,0.001]
[1764258756184,0.2414,3014.7,3014.6,0.001]
[1764258756338,0.95671472,3014.7,3014.6,0.001]
[1764258756533,0.55121072,3014.7,3014.6,0.001]
[1764258756737,1.04511072,3014.7,3014.6,0.001]
[1764258756947,1.48132482,3014.7,3014.6,0.001]
[1764258757240,0.98742482,3014.7,3014.6,0.001]
[1764258758062,5.20390846,3014.7,3014.6,0.001]
[1764258758268,1.39292882,3014.7,3014.6,0.001]
[1764258758635,4.71000846,3014.7,3014.6,0.001]
[1764258758839,1.15152882,3014.7,3014.6,0.001]
[1764258759064,0.30981072,3014.7,3014.6,0.001]
[1764258759268,4.36219036,3014.7,3014.6,0.001]
[1764258759571,4.46159036,3014.7,3014.6,0.001]
[1764258759778,0.30981072,3014.7,3014.6,0.001]
[1764258760064,0.405504,3015.0,3014.6,0.001]
[1764258760231,0.30977747,3014.9,3014.6,0.001]
[1764258760435,0.71528147,3014.8,3014.6,0.001]
[1764258760662,0.30977747,3014.7,3014.6,0.001]
[1764258761070,0.30897747,3014.7,3014.6,0.001]
[1764258761273,0.30897747,3014.7,3014.6,0.4891]
[1764258761640,0.30897747,3014.7,3014.6,0.9707]
[1764258761943,0.30897747,3014.7,3014.6,1.73466925]
[1764258762153,0.30897747,3014.7,3014.6,1.94666925]
[1764258762351,0.30897747,3014.7,3014.6,5.26385892]
[1764258762744,0.03241817,3015.2,3014.6,8.58104859]
[1764258762955,0.212,3015.4,3015.1,0.4881]
[1764258763363,0.03241817,3015.3,3014.7,0.51477079]
[1764258763545,0.03241817,3015.4,3014.8,0.81261194]
[1764258763753,0.62121817,3015.4,3014.6,7.61134859]
[1764258764268,0.405504,3015.3,3014.6,4.08215892]
[1764258764439,0.03241817,3015.2,3014.7,0.72677079]
[1764258765276,0.472,3014.8,3014.6,0.001]
[1764258765568,0.472,3014.7,3014.6,0.001]
[1764258766172,0.7376,3014.7,3014.6,0.001]
[1764258766472,0.472,3014.7,3014.6,0.001]
[1764258766673,4.88287907,3014.7,3014.6,0.001]
[1764258767169,4.91529724,3014.7,3014.6,0.001]
[1764258767857,4.64969724,3014.7,3014.6,0.001]
[1764258768054,4.91529724,3014.7,3014.6,0.001]
[1764258768373,5.01469724,3014.7,3014.6,0.001]
[1764258772396,4.91529724,3014.7,3014.6,0.001]
[1764258772866,5.01469724,3014.7,3014.6,0.001]
[1764258773077,5.32458867,3014.7,3014.6,0.001]
[1764258773386,6.01776461,3014.7,3014.6,0.001]
[1764258773557,6.05018278,3014.7,3014.6,0.001]
[1764258775025,6.05018278,3014.7,3014.2,0.001]
[1764258775026,1.62049811,3014.6,3014.2,0.001]
[1764258775294,0.504904,3014.1,3013.1,0.001]
[1764258775495,0.504904,3014.0,3013.1,0.001]
[1764258775797,0.504904,3013.9,3013.1,0.001]
[1764258775999,1.17459543,3013.9,3013.1,0.001]
[1764258776167,2.05309136,3013.9,3013.1,0.001]
[1764258776678,5.88464558,3013.9,3013.1,0.001]
[1764258776878,6.09664558,3013.9,3013.1,0.001]
[1764258777202,5.88464558,3013.9,3013.1,0.196]
[1764258777398,6.09664558,3013.9,3013.1,0.196]
[1764258777966,6.12906375,3013.9,3013.1,0.001]
[1764258778978,6.12906375,3013.9,3013.1,0.196]
[1764258779390,5.81917232,3013.9,3013.1,0.196]
[1764258779563,6.12842415,3013.9,3013.2,0.4816]
[1764258780507,0.30925183,3013.9,3013.8,0.9707]
[1764258780666,0.48335183,3013.9,3013.8,0.001]
[1764258780860,1.37515583,3013.9,3013.8,0.001]
[1764258781076,4.72553411,3013.9,3013.8,0.001]
[1764258781806,4.23923411,3013.9,3013.8,0.001]
[1764258781996,0.747174,3013.9,3013.8,0.001]
[1764258782365,0.747174,3013.9,3013.8,0.4891]
[1764258782567,0.34167,3013.9,3013.8,0.4891]
[1764258782869,0.30925183,3013.9,3013.8,0.9707]
[1764258783069,0.30925183,3013.9,3013.8,4.28877021]
[1764258783495,0.30925183,3013.9,3013.8,0.9707]
[1764258783794,0.30925183,3013.9,3013.8,4.28877021]
[1764258783996,0.30925183,3013.9,3013.8,0.9707]
[1764258784315,5.73011005,3013.9,3013.8,0.001]
[1764258784501,6.67056648,3013.9,3013.8,0.001]
[1764258784790,6.63734831,3013.9,3013.8,0.001]
[1764258785772,5.93904831,3013.9,3013.8,0.001]
[1764258785983,6.08406648,3013.9,3013.8,0.001]
[1764258786185,6.66976648,3013.9,3013.8,0.001]
[1764258786392,6.63734831,3013.9,3013.8,0.001]
[1764258786896,6.05164831,3013.9,3013.8,0.001]
[1764258787087,6.08406648,3013.9,3013.8,0.001]
[1764258787285,0.34087,3013.9,3013.8,0.4891]
[1764258787486,0.30845183,3013.9,3013.8,0.9707]
[1764258788578,0.30845183,3013.9,3013.8,0.4891]
[1764258788770,0.30845183,3013.9,3013.8,4.28877021]
[1764258789181,0.002,3014.7,3013.8,7.60684042]
[1764258789384,0.002,3014.7,3014.6,0.6831]
[1764258790072,0.03441817,3014.7,3014.6,0.4881]
[1764258790277,0.002,3014.7,3014.6,0.4881]
[1764258794875,0.002,3014.7,3014.6,0.9535]
[1764258795408,0.002,3014.7,3014.6,0.4881]
[1764258795613,0.405504,3014.6,3014.5,0.001]
[1764258795910,0.72242217,3014.6,3014.5,0.001]
[1764258796689,4.34912678,3014.6,3014.5,0.001]
[1764258796889,5.18613742,3014.6,3014.5,0.001]
[1764258797679,1.58444775,3014.6,3014.5,0.001]
[1764258797879,0.74743711,3014.6,3014.5,0.001]
[1764258798511,4.06462678,3014.6,3014.5,0.001]
[1764258800609,0.74743711,3014.6,3014.5,0.4992]
[1764258801196,4.30872678,3014.6,3014.5,0.001]
[1764258801399,4.40812678,3014.6,3014.5,0.001]
[1764258801583,1.09093711,3014.6,3014.5,0.001]
[1764258802114,1.09093711,3014.6,3014.5,0.4992]
[1764258802115,0.74743711,3014.6,3014.5,0.4992]
[1764258802317,0.30951494,3014.6,3014.5,0.4992]
[1764258802617,0.30951494,3014.6,3014.5,0.9646]
[1764258803694,0.30951494,3014.6,3014.5,0.001]
[1764258803909,0.30951494,3014.6,3014.5,0.4992]
[1764258804211,0.002,3014.7,3014.5,7.59919942]
[1764258804408,0.002,3014.7,3014.6,1.47011994]
[1764258804613,0.002,3014.7,3014.6,1.93551994]
[1764258804986,0.002,3014.7,3014.6,5.25270961]
[1764258808497,0.0012,3014.7,3014.6,5.25270961]
[1764258811407,0.0012,3014.7,3014.6,1.47011994]
[1764258811599,0.0012,3014.7,3014.6,5.25270961]
[1764258815088,0.0012,3014.7,3014.6,4.78730961]
[1764258815293,0.0012,3014.7,3014.6,5.2858815]
[1764258815484,0.0012,3014.7,3014.6,5.25270961]
[1764258816419,0.0012,3014.7,3014.6,5.2858815]
[1764258816794,0.0012,3014.7,3014.6,4.78730961]
[1764258817626,0.0012,3014.7,3014.6,5.25270961]
[1764258818115,0.0012,3014.7,3014.6,1.47011994]
[1764258818322,0.0012,3014.7,3014.6,4.02738967]
[1764258818622,0.0012,3014.7,3014.6,0.7102]
[1764258819194,0.3115682,3014.7,3014.6,0.7102]
[1764258819394,0.3115682,3014.7,3014.6,4.02738967]
[1764258819621,0.3115682,3014.7,3014.5,3.31829161]
[1764258819816,0.0012,3014.7,3014.5,3.31829161]
[1764258820318,0.0012,3014.7,3014.6,0.4982]
[1764258820524,0.0012,3014.7,3014.6,3.81538967]
[1764258820525,0.31156954,3014.7,3014.6,3.81538967]
[1764258821509,0.55706954,3014.7,3014.6,3.31718967]
[1764258821849,0.55706954,3014.7,3014.6,3.79888967]
[1764258821850,0.31156954,3014.7,3014.6,3.79888967]
[1764258822037,0.31156954,3014.7,3014.6,4.26008967]
[1764258822537,0.31156954,3014.7,3014.6,5.01792771]
[1764258822719,0.0012,3014.7,3014.6,5.01792771]
[1764258823241,0.0012,3014.7,3014.6,5.0510996]
[1764258825329,0.0012,3014.7,3014.6,4.5898996]
[1764258825503,0.0012,3014.7,3014.6,4.55672771]
[1764258825708,0.0012,3014.7,3014.6,5.0510996]
[1764258826916,0.0012,3014.7,3014.6,5.77669371]
[1764258831627,0.0012,3014.7,3014.6,5.28232182]
[1764258831938,0.0012,3014.7,3014.6,4.01088967]
[1764258832114,0.31179606,3014.7,3014.6,4.01088967]
[1764258832314,0.31099606,3014.7,3014.6,4.50526156]
[1764258832725,0.31099606,3014.7,3014.6,4.47208967]
[1764258834331,0.31099606,3014.7,3014.6,1.1549]
[1764258834524,0.77349606,3014.7,3014.6,3.52918967]
[1764258834926,0.31099606,3014.7,3014.6,4.01088967]
[1764258835438,0.31099606,3014.7,3014.6,4.47208967]
[1764258835815,0.31099606,3014.7,3014.6,4.50526156]
[1764258836013,0.31099606,3014.7,3014.6,5.63969532]
[1764258836710,0.31099606,3014.7,3014.6,5.60652343]
[1764258836928,0.31099606,3014.7,3014.6,5.63969532]
[1764258838442,0.31099606,3014.7,3014.6,5.60652343]
[1764258839050,0.31099606,3014.7,3014.6,5.14532343]
[1764258839349,0.31099606,3014.7,3014.6,4.04406156]
[1764258839716,0.31099606,3014.7,3014.6,4.50526156]
[1764258840315,0.31099606,3014.7,3014.6,4.04406156]
[1764258841620,0.31099606,3014.7,3014.6,4.50526156]
[1764258842439,0.0004,3014.7,3014.6,4.50526156]
[1764258842637,0.0004,3014.7,3014.6,5.63969437]
[1764258843022,0.0004,3014.7,3014.6,6.36528848]
[1764258843221,0.0004,3014.7,3014.6,6.46528848]
[1764258843550,0.0004,3014.7,3014.6,8.23288249]
[1764258843850,0.0004,3014.7,3014.6,8.1997106]
[1764258844376,0.0004,3014.7,3014.6,6.43211659]
[1764258844555,0.0004,3014.7,3014.6,6.46528848]
[1764258845060,0.0004,3014.7,3014.6,6.43211659]
[1764258845245,0.0004,3014.7,3014.6,6.46528848]
[1764258845551,0.0004,3014.7,3014.6,6.59812346]
[1764258846122,0.002,3015.1,3014.7,0.72559411]
[1764258846354,0.002,3015.1,3015.0,7.02863471]
[1764258846551,0.002,3015.1,3015.0,7.23963471]
[1764258846757,0.002,3015.1,3015.0,7.70083471]
[1764258846944,0.002,3015.1,3015.0,8.01121831]
[1764258847122,0.002,3015.1,3015.0,6.97463887]
[1764258847328,0.002,3015.1,3015.0,7.83816257]
[1764258848262,0.002,3015.4,3015.3,0.1]
[1764258848429,0.002,3015.4,3015.3,3.83117469]
[1764258848768,0.002,3015.4,3015.3,4.29237469]
[1764258849554,0.002,3015.4,3015.3,4.32553888]
[1764258849748,0.002,3015.4,3015.3,4.93402216]
[1764258850341,0.002,3015.4,3015.3,5.77489698]
[1764258850541,0.002,3015.4,3015.3,7.19073932]
[1764258850748,0.002,3015.4,3015.3,7.15757513]
[1764258850945,0.002,3015.4,3015.3,5.34319698]
[1764258851457,0.002,3015.4,3015.3,5.83379698]
[1764258851649,0.002,3015.4,3015.3,5.96696117]
[1764258853356,0.002,3015.4,3015.3,10.24251311]
[1764258853527,0.002,3015.4,3015.3,10.34215126]
[1764258854530,0.002,3015.4,3015.3,9.17047311]
[1764258855051,0.002,3015.4,3015.3,8.57697311]
[1764258855259,0.002,3015.4,3015.3,9.16757311]
[1764258855836,0.002,3015.4,3015.3,10.33925126]
[1764258856153,0.469,3016.4,3016.3,0.4788]
[1764258856154,0.0022,3016.4,3016.3,0.4788]
[1764258856360,0.0022,3016.4,3016.3,0.6898]
[1764258856525,0.0022,3016.4,3016.3,4.00512009]
[1764258857137,0.0022,3016.4,3016.3,4.49572009]
[1764258857351,0.0022,3016.4,3016.3,5.29521463]
[1764258857542,0.0022,3016.4,3016.3,4.80461463]
[1764258858152,0.0022,3016.4,3016.3,4.32581463]
[1764258858350,0.5852,3016.4,3016.3,3.31532009]
[1764258858554,0.5852,3016.4,3016.3,3.52632009]
[1764258858732,0.4821,3016.4,3016.3,3.52632009]
[1764258859456,0.5852,3016.4,3016.3,3.52632009]
[1764258859955,0.5852,3016.4,3016.3,3.55947329]
[1764258860566,0.5852,3016.4,3016.3,3.52632009]
[1764258861366,0.5872,3016.4,3016.3,3.52632009]
[1764258862665,0.4841,3016.4,3016.3,3.55947329]
[1764258862868,0.5872,3016.4,3016.3,3.52632009]
[1764258864858,0.5872,3016.4,3016.2,3.52635759]
[1764258865078,0.467,3016.3,3016.2,3.52635759]
[1764258865984,0.467,3016.3,3016.2,0.211]
[1764258866659,0.467,3016.3,3016.2,3.52643001]
[1764258866984,0.467,3016.3,3016.2,0.211]
[1764258867291,0.467,3016.3,3016.2,3.52643001]
[1764258867657,0.0042,3016.4,3016.3,0.82559411]
[1764258867857,0.0042,3016.4,3016.3,1.82814731]
[1764258868080,0.0042,3016.4,3016.3,1.86090557]
[1764258868285,0.0042,3016.4,3016.3,1.96090557]
[1764258868692,0.0042,3016.4,3016.3,5.48722566]
[1764258868891,0.0042,3016.4,3016.3,6.4845937]
[1764258871700,0.0042,3016.4,3016.3,6.4514405]
[1764258871880,0.0042,3016.4,3016.3,6.2404405]
[1764258872086,0.0042,3016.4,3016.3,4.7307142]
[1764258872282,0.0042,3016.4,3016.3,5.3544674]
[1764258874384,0.0042,3016.4,3016.3,4.7638674]
[1764258874591,0.2687,3016.4,3016.3,4.0740674]
[1764258874796,0.2687,3016.4,3016.3,3.55947329]
[1764258876091,0.0042,3016.4,3016.3,3.55947329]
[1764258876294,0.2707,3016.4,3016.3,3.55947329]
[1764258876908,0.7327,3016.4,3016.3,3.31532009]
[1764258877262,0.2707,3016.4,3016.3,3.34847329]
[1764258877493,0.0042,3016.4,3016.3,3.82727329]